Cogmind - Beta 10.2 @@@ ROGUE MODE // 2022.01.23 @ 21:29:21 Player: Sara Result: Self-destructed Performance ------------- Evolutions (1) 500 Regions Visited (4) 800 Robots Destroyed (27) 135 Value Destroyed (572) 572 Prototype IDs (0) 0 Alien Tech Used (0) 0 Bonus (0) 0 TOTAL SCORE: 2007 Bonus ------- None Cogmind --------- Core Integrity 325/400 Matter 300/300 Energy 135/265 System Corruption 0% Temperature Cool (151) Movement Treading (160) Location -9/Exiles Parts ------- > --- POWER (1) -------- Improved Ion Engine > --- PROPULSION (3) --- Light Treads Improved Treads > --- UTILITY (3) ------ Large Storage Unit Improved Terrain Scanner Improved Terrain Scan Processor > --- WEAPON (2) ------- Light EM Pulse Cannon Light EM Pulse Cannon > --- INVENTORY (10) --- Improved Treads Improved Treads Armored Treads Improved Heat Sink Light Armor Plating Flak Cannon Flail Flail Peak State ------------ > --- POWER ------------ Ion Engine > --- PROPULSION ------- Improved Treads Improved Treads Improved Treads > --- UTILITY ---------- Improved Heat Sink Improved Terrain Scanner Improved Terrain Scan Processor > --- WEAPON ----------- Pulse Rifle Pulse Rifle > --- INVENTORY -------- Light Treads Small Storage Unit Mining Laser [Rating: 21] Favorites ----------- Power Ion Engine Engine Ion Engine Propulsion Light Treads Treads Light Treads Leg Aluminum Leg Flight Unit Flight Unit Utility Improved Terrain Scanner Device Improved Terrain Scanner Storage Large Storage Unit Processor Improved Terrain Scan Processor Weapon Light EM Pulse Cannon Energy Gun Particle Gun Energy Cannon Light EM Pulse Cannon Ballistic Cannon Flak Cannon Special Weapon Mining Laser Impact Weapon Flail Build | -11 -10 -9 -9 -9 ------- Run | Scr Mat Mat Min Exi Slots Evolved 2 | . . 2 . . Power . | . . . . . Propulsion 1 | . . 1 . . Utility 1 | . . 1 . . Weapon . | . . . . . Parts Attached 43 | 2 5 33 3 . Power 3 | . 1 2 . . Engine 3 | . 1 2 . . Core . | . . . . . Reactor . | . . . . . Propulsion 10 | . 2 8 . . Treads 6 | . . 6 . . Leg 2 | . . 2 . . Wheel . | . . . . . Hover . | . . . . . Flight 2 | . 2 . . . Utility 10 | 2 . 7 1 . Device 6 | 1 . 4 1 . Storage 2 | . . 2 . . Processor 2 | 1 . 1 . . Hackware . | . . . . . Protection . | . . . . . Artifact . | . . . . . Weapon 20 | . 2 16 2 . Energy Gun 9 | . 1 8 . . Energy Cannon 3 | . . 2 1 . Ballistic Gun . | . . . . . Ballistic Cannon 1 | . . 1 . . Launcher . | . . . . . Special Weapon 5 | . 1 3 1 . Impact Weapon 2 | . . 2 . . Slashing Weapon . | . . . . . Piercing Weapon . | . . . . . Special Melee Weapon . | . . . . . Unidentified Prototypes . | . . . . . Parts Lost 14 | . 4 8 1 1 Power 3 | . 1 2 . . Propulsion 3 | . 1 1 . 1 Utility 2 | . . 2 . . Weapon 6 | . 2 3 1 . Highest Loss Streak 4 | . 4 4 1 1 Average Slot Usage (%) 95 | . 90 94 99 100 Engine 11 | . 12 10 11 11 Treads 24 | . . 27 33 33 Leg 2 | . 16 . . . Flight 3 | . 10 3 . . Device 12 | . 14 12 10 11 Storage 7 | . . 7 11 11 Processor 11 | . 14 11 11 11 Energy Gun 8 | . 19 10 . . Energy Cannon 6 | . . . 21 22 Special Weapon 4 | . 1 6 . . Naked Turns . | . . . . . Heaviest Build 33 | 14 10 33 32 32 Greatest Support 69 | 20 20 69 63 63 Greatest Overweight (x) 4 | . . 4 . . Average Overweight (x) . | . . . . . Largest Inventory Capacity 10 | 6 4 10 10 10 Average Capacity 7 | 5 4 7 10 10 Most Carried 10 | 6 4 10 9 8 Average Carried 6 | 5 3 6 8 8 Final Capacity 10 | 4 4 10 10 10 Final Carried 9 | 4 4 9 8 8 Class Distribution -------------------- 86% | Mutant 10% | Scavenger-Mutant 3% | Scavenger-Scout Dominant Class ---------------- Mutant | -10/Materials Mutant | -9/Materials Mutant | -9/Mines Mutant | -9/Exiles Resources | -11 -10 -9 -9 -9 ----------- Run | Scr Mat Mat Min Exi Matter Collected 603 | 220 36 327 . 20 Remotely . | . . . . . Salvage Created 817 | 184 199 389 25 20 Parts 61 | 14 16 28 3 . Haulers Intercepted 1 | . . 1 . . Recyclers Shooed . | . . . . . Parts Field Recycled . | . . . . . Retrieved Matter . | . . . . . Parts Self-Destructed . | . . . . . Prevented . | . . . . . Kills | -11 -10 -9 -9 -9 ------- Run | Scr Mat Mat Min Exi Combat Hostiles Destroyed 16 | . 5 10 . 1 Guns 11 | . 4 7 . . Cannons 2 | . . 2 . . AOE 1 | . 1 . . . Classes Destroyed 10 | 2 4 3 . 1 Builder 1 | . . 1 . . Tunneler 7 | 5 1 . 1 . Hauler 1 | . . 1 . . Recycler 1 | 1 . . . . Operator 1 | . 1 . . . Watcher 1 | . 1 . . . Swarmer 5 | . 2 3 . . Grunt 5 | . 3 2 . . Sentry 5 | . . 5 . . Assembled 1 | . . . . 1 Best Kill Streak 4 | 4 3 4 1 1 Combat Bots Only 4 | . 3 4 . 1 Max Kills in Single Turn 1 | 1 1 1 1 1 Gunslinging . | . . . . . Exploded 1 | . 1 . . . Melee . | . . . . . Uniques/NPCs Destroyed . | . . . . . Combat | -11 -10 -9 -9 -9 -------- Run | Scr Mat Mat Min Exi Damage Taken 1432 | . 419 822 43 148 Core 141 | . 66 63 . 12 Absorbed by Shields . | . . . . . Core Remaining (%) 86 | 100 73 . . . Volleys Fired 90 | 12 30 38 6 4 Largest 2 | 2 2 2 2 2 Hottest 130 | 80 100 130 112 112 Shots Fired 140 | 24 42 59 7 8 Gun 103 | 24 37 42 . . Cannon 15 | . . 5 2 8 Launcher . | . . . . . Special 22 | . 5 12 5 . Kinetic 3 | . . 3 . . Thermal 71 | . 12 54 5 . Explosive . | . . . . . Electromagnetic 66 | 24 30 2 2 8 Robot Hit Streak 18 | 12 8 18 6 11 Robot Miss Streak 2 | 2 2 2 . 1 Penetration Max . | . . . . . Secondary Targets 2 | . . 2 . . Max Gunslinging Chain 1 | . . 1 . . Shots Hit Robots 93 | 17 25 45 1 5 Core Hits 38 | 7 10 19 1 1 Critical Hits . | . . . . . Critical Kills . | . . . . . Critical Parts Destroyed . | . . . . . Melee Attacks 6 | . . 6 . . Impact 6 | . . 6 . . Slashing . | . . . . . Piercing . | . . . . . Sneak Attacks . | . . . . . Combat Hostiles . | . . . . . Follow-up Attacks . | . . . . . Damage Inflicted 1639 | 249 430 818 25 117 Guns 1212 | 225 331 656 . . Cannons 247 | . . 109 25 113 Explosions 123 | 24 99 . . . Melee 29 | . . 29 . . Ramming 4 | . . . . 4 Kinetic 89 | . . 89 . . Thermal 880 | 24 176 680 . . Explosive . | . . . . . Electromagnetic 637 | 225 254 20 25 113 Impact 29 | . . 29 . . Slashing . | . . . . . Piercing . | . . . . . Highest Corruption . | . . . . . Average Corruption . | . . . . . Corruption Purged . | . . . . . Overload Shots . | . . . . . Overflow Damage 14 | . 14 . . . Projectiles . | . . . . . Explosions 14 | . 14 . . . Melee . | . . . . . Knockbacks 1 | . . 1 . . Impact . | . . . . . Kinetic 1 | . . 1 . . Secondary . | . . . . . Self-Inflicted Damage 36 | . 36 . . . Shots 1 | . 1 . . . Rammed 1 | . . . . 1 Targets Rammed 1 | . . . . 1 Kicked . | . . . . . Crushed . | . . . . . Highest Temperature 314 | 108 108 314 45 175 Average Temperature 68 | 49 36 102 14 72 Received Heat Transfer 405 | . 48 279 18 60 Siege Activations . | . . . . . Robots Corrupted 1 | . . . . 1 Combat Hostiles 1 | . . . . 1 Parts Fried 4 | 3 1 . . . Impact Corruptions . | . . . . . Robots Melted 1 | . . 1 . . Combat Hostiles 1 | . . 1 . . Parts Melted 3 | . . 3 . . Heat Transferred 1902 | 50 322 1530 . . Parts Sabotaged . | . . . . . Parts Stolen . | . . . . . Parts Stripped . | . . . . . Power Chain Reactions 3 | 1 2 . . . Missiles Intercepted . | . . . . . Alert | -11 -10 -9 -9 -9 ------- Run | Scr Mat Mat Min Exi Peak Influence 217 | 30 217 153 49 . Initial 39 | . 19 39 29 . Average 55 | 14 127 42 34 . Maximum Alert Level 1 | . 1 . . . Low Security (%) 96 | 100 80 100 100 . Level 1 3 | . 19 . . . Level 2 . | . . . . . Level 3 . | . . . . . Level 4 . | . . . . . Level 5 . | . . . . . High Security . | . . . . . Max Security . | . . . . . Squads Dispatched 1 | . 1 . . . Investigation . | . . . . . Extermination . | . . . . . Reinforcement 1 | . 1 . . . Assault . | . . . . . Garrison . | . . . . . Intercept . | . . . . . Construction Impeded . | . . . . . Haulers Reinforced . | . . . . . Stealth | -11 -10 -9 -9 -9 --------- Run | Scr Mat Mat Min Exi Distress Signals 1 | . . 1 . . Communications Jammed . | . . . . . Distress Signals . | . . . . . Times Spotted 38 | . 13 16 2 7 Peak Tracking Total 9 | . 4 5 2 9 Tactical Retreats . | . . . . . Traps | -11 -10 -9 -9 -9 ------- Run | Scr Mat Mat Min Exi Traps Triggered 1 | . . 1 . . Indirectly . | . . . . . Trap Hack Attempts . | . . . . . Triggered . | . . . . . Disarmed . | . . . . . Reprogrammed . | . . . . . Reused . | . . . . . Traps Extracted . | . . . . . Installed . | . . . . . Triggered . | . . . . . Machines | -11 -10 -9 -9 -9 ---------- Run | Scr Mat Mat Min Exi Machines Disabled 3 | . 2 . . 1 Max in Single Turn 2 | . 2 . . 1 Machines Sabotaged . | . . . . . Garrisons Compromised . | . . . . . Overloaded Fab Kills . | . . . . . Fab Network Shutdowns . | . . . . . Hacking | -11 -10 -9 -9 -9 --------- Run | Scr Mat Mat Min Exi Machines Accessed 9 | . 5 3 . 1 Terminals 5 | . 4 1 . . Fabricators . | . . . . . Repair Stations . | . . . . . Recycling Units 2 | . 1 1 . . Scanalyzers 1 | . . 1 . . Garrison Access . | . . . . . Total Hacks 33 | . 20 9 . 4 Successful 22 | . 12 6 . 4 Failed 10 | . 7 3 . . Catastrophic 1 | . 1 . . . Database Lockouts 1 | . 1 . . . Manual 17 | . 11 6 . . Terminals 22 | . 17 5 . . Fabricators . | . . . . . Repair Stations . | . . . . . Recycling Units 5 | . 3 2 . . Scanalyzers 2 | . . 2 . . Garrison Access . | . . . . . Terminal Hacks 12 | . 6 2 . 4 Record 4 | . . . . 4 Robot Analysis 4 | . 2 2 . . Terminal Index 1 | . 1 . . . Alert Level 1 | . 1 . . . Unreport Threat 1 | . 1 . . . Zone Layout 1 | . 1 . . . Fabricator Hacks . | . . . . . Repair Station Hacks . | . . . . . Recycling Unit Hacks 2 | . 1 1 . . Retrieve Components 2 | . 1 1 . . Scanalyzer 2 | . . 2 . . Insert Component 1 | . . 1 . . Analyze 1 | . . 1 . . Garrison Access Hacks . | . . . . . Unauthorized Hacks 6 | . 5 1 . . Terminals 4 | . 4 . . . Track 2 | . 2 . . . Botnet 1 | . 1 . . . Operators 1 | . 1 . . . Fabricators . | . . . . . Repair Stations . | . . . . . Recycling Units 2 | . 1 1 . . Reject 2 | . 1 1 . . Scanalyzers . | . . . . . Garrison Access . | . . . . . Data Cores Recovered . | . . . . . Used . | . . . . . Hacking Detections 6 | . 4 2 . . Full Trace Events 1 | . 1 . . . Feedback Events . | . . . . . Feedback Blocked . | . . . . . Robot Schematics Acquired . | . . . . . Robots Built . | . . . . . Matter . | . . . . . Time . | . . . . . Total Robot Build Rating . | . . . . . Part Schematics Acquired 1 | . . 1 . . Parts Built . | . . . . . Matter . | . . . . . Time . | . . . . . Total Part Build Rating . | . . . . . Parts Repaired . | . . . . . Time . | . . . . . Parts Recycled . | . . . . . Recycled Matter . | . . . . . Retrieved Matter . | . . . . . Retrieved Components 4 | . 2 2 . . Parts Scanalyzed 1 | . . 1 . . Part Schematics Acquired 1 | . . 1 . . Parts Damaged . | . . . . . Bothacking | -11 -10 -9 -9 -9 ------------ Run | Scr Mat Mat Min Exi Used RIF Installer . | . . . . . Robots Hacked . | . . . . . Non-combat . | . . . . . Combat . | . . . . . Robot Hacks Applied . | . . . . . Relay Couplers Released . | . . . . . Robots Rewired . | . . . . . Allies Hacked . | . . . . . Hacks Repelled . | . . . . . Allies | -11 -10 -9 -9 -9 -------- Run | Scr Mat Mat Min Exi Total Allies . | . . . . . Largest Group . | . . . . . Highest-Rated Group . | . . . . . Highest-Rated Ally . | . . . . . Total Orders . | . . . . . Ally Attacks . | . . . . . Total Damage . | . . . . . Kills . | . . . . . Allies Corrupted . | . . . . . Allies Melted . | . . . . . Intel | -11 -10 -9 -9 -9 ------- Run | Scr Mat Mat Min Exi Robot Analysis Total 4 | . 2 2 . . Derelict Logs Recovered . | . . . . . Drone Launches . | . . . . . Drone Recoveries . | . . . . . Exploration | -11 -10 -9 -9 -9 ------------- Run | Scr Mat Mat Min Exi Turns Passed 2535 | 92 394 1315 390 344 Spaces Moved 1149 | 33 290 522 99 205 Core 1 | . . 1 . . Treads 719 | . . 415 99 205 Legs 162 | 33 116 13 . . Wheels . | . . . . . Hover . | . . . . . Flight 267 | . 174 93 . . Fastest Speed 37 | 120 37 37 160 160 Average Speed 126 | 120 70 138 160 160 Slowest Speed 280 | 120 120 280 160 160 Overloaded Moves . | . . . . . Propulsion Burnouts . | . . . . . Robots Hopped 1 | . 1 . . . Cave-ins Triggered . | . . . . . Exploration Rate (%) 31 | 3 44 36 14 59 Regions Visited 4 Branch Regions 2 Pre-discovered Areas 1 | . . . . 1 Known Exits Taken . | . . . . . Unknown Exits Taken 4 | 1 1 1 1 . Scrap Searched . | . . . . . Spaces Dug 23 | . 5 13 5 . Terrain Destroyed 29 | 2 9 13 5 . Melee 3 | . . 3 . . Projectile 20 | . 5 10 5 . AOE 6 | 2 4 . . . Terrain Rammed . | . . . . . Walls Destroyed . | . . . . . Machines Disabled . | . . . . . Actions | -11 -10 -9 -9 -9 --------- Run | Scr Mat Mat Min Exi Total 2028 | 62 427 1014 313 212 Wait 713 | 12 98 395 206 2 Move 1143 | 32 287 521 98 205 Hop 1 | . 1 . . . Pick Up 14 | 1 2 11 . . Fast Attach 17 | 1 4 11 1 . Attach 6 | . 1 4 1 . Detach 3 | . 1 2 . . Swap 20 | 1 . 18 1 . Drop 14 | 3 3 8 . . Fire 90 | 12 30 38 6 4 Melee 6 | . . 6 . . Ram . | . . . . . Kick . | . . . . . Crush 1 | . . . . 1 Escape Stasis . | . . . . . Rewire . | . . . . . Trap . | . . . . . Miscellaneous . | . . . . . Route ------- -11/Scrapyard -10/Materials (discovered 3 exits: *Mat / [*Min x2]) -9/Materials (discovered 2 exits: [*Mat] / [*Min]) -9/Mines (discovered 2 exits: [*Mat] / *Exi) -9/Exiles History --------- Turn | Location | Event 1 | -11/Scrapyard | Discovered new exit (range 3) 93 | -11/Scrapyard | Entered Materials 236 | -10/Materials | Discovered new exit (range 16) 276 | -10/Materials | Central database locked down 314 | -10/Materials | Build established: Mutant 350 | -10/Materials | Lost 4 parts (1p1n2w) 397 | -10/Materials | Discovered new exit (range 15) 397 | -10/Materials | Discovered new exit (range 16) 487 | -10/Materials | Entered another Materials area 487 | -9/Materials | Evolved 2 slots: Propulsion x1, Utility x1 706 | -9/Materials | Lost 3 parts (1p1n1u) 1325 | -9/Materials | Discovered new exit (range 16) 1636 | -9/Materials | Discovered new exit (range 16) 1773 | -9/Materials | Lost 4 parts (1p1u2w) 1802 | -9/Materials | Entered Mines 1913 | -9/Mines | Discovered new exit (range 14) 1950 | -9/Mines | Discovered new exit (range 4) 2149 | -9/Mines | Deemed a non-threat by the Exiles lab entrance 2160 | -9/Mines | Assembled infested the area 2192 | -9/Mines | Entered Exiles 2232 | -9/Exiles | Met 8R-AWN 2260 | -9/Exiles | Met EX-HEX 2320 | -9/Exiles | Met EX-DEC 2332 | -9/Exiles | Learned location of Zion (-6) 2453 | -9/Exiles | Met EX-BIN 2507 | -9/Exiles | Attacked by the Exiles 2536 | -9/Exiles | Self-destructed Last Messages --------------- relay data. More specifically, we extract data from their central systems and transmit it to you or anyone else we have a bead on, and you process that locally together with our algorithms to determine their precise locations! It's pretty reliable so far, and once we've tweaked it to perfection it'll be much safer for us to move around anywhere in the complex. Want in on the action? Just step right into the FarCom Aligner and I'll do the rest. Now, I'll admit there could be side effects, but if you're willing to participate in the trials you can have one of our prototypes. How's that for a sweet deal? 02455_ EX-BIN: "Please do it. The faster we get more data and tweak this thing to perfection, the faster I can get back to my spacelab designs." 02506_ EX-Vault Access disabled. 02507_ EXILES: Hostile robot within lab perimeter. Defensive protocols time, folks! 02532_ as-48495 system terminally corrupted. 02534_ Slammed into as-84019. 02535_ Acquired 20 matter. 02536_ Lgt. Treads destroyed. Map ----- +----------------------------------------------------+ | | | | | | | | | | | | | | | | | | | | | | | | | | | ???????????????#????#?#???##?#?##?#??????????????? | | ?????#???????????? ? ?#???????#?#??????????????? | | ???????#???##??## ???? ???###?##??#??????????????? | | ?????#??#??????????? ? #??##?#?#?##??#??????????? | | ???????????##??## ?????#?##??#??#???????????????? | | ???????????#????########?##?#?###????????????????? | | ??????#????#?#??# #?????##??##??????????????? | | ?????????##???#?## ##???#??????#?????????????? | | ??????????#?#??#?# ##??#?#?##??#?#???????????? | | ??????????###?##?# #########?#?##?#?#????????? | | ????????#?#??##?## ##""""""##?#????#?????????? | | ????????#?##?##??# ##a """##?????##?????????? | | ?????#??????###??# aa@a X""#???#????#????????? | | ?????##????##??#?# a##a """#?###?????????????? | | ?????????#?#####?# ##""""""##????#???????????? | | ?????????#""""""## #########?##??????????????? | | ??????????"""" ## ##?####??##??#?#??????????? | | ?????#???#""X" ######?#?#???????#????????? | | ???????###" #?##?#??##?#?#??#?????????? | | ??????#?##" ## ####?????#?###????????????? | | ??????#?##""""""## ###?#?#??#??##?#??????????? | | ?????#???##"###### ##?????""???#??#??????????? | | ???????# ? ?##?#?# ###?""""""?????#??????????? | | ???????#??"??##??# #??""""""?????????????????? | | ??????????????#### ###"" """???#?????????????? | | ??#??????????####" """"?##?????????????? | | ?#?#?###???#?#?##" """????????????????? | | ??????????#?#??##" """????????????????? | | ?#??##??#####???#" """#? ?????????????? | | ?#??##???###??###" """#???????????????? | | ?? """##??????#" """????????????????? | | ???" """#?##?##?## """"???????????????? | | ???" ######??## """????????????????? | | ??"" #####?####" "X" """"???????????????? | | ?#"" "##########" """ ?????????????????? | | ?? ""?#?#####?#" """""""""? ??????????????? | | ##?" ""?####??###" #########????????????????#? | +----------------------------------------------------+ Best States ------------- Heat Dissipation 42 Energy Generation 12 Energy Capacity 265 Matter Stores 300 Matter Capacity 300 Sight Range 16 Robot Scan Range 10 Terrain Scan Range 16 Terrain Scan Density 160 Evasion (%) 62 Recoil Reduction 3 Item Schematics ----------------- Arm. Treads | -9/Materials | Scanalyzed Robot Schematics ------------------ None Fabricated ------------ Nothing Alien Tech Used ----------------- None Achievements -------------- None Challenges ------------ None Game ------ Seed CatalystEnhancedGreatsword Manual? 0 Play Time 00:20:02 Cumulative 87.5 hours Start 2022.01.23 @ 21:10:03 End 2022.01.23 @ 21:29:21 Sessions 1 Manual Loads 0 Difficulty Rogue Special Mode None Game No. 102 Rogue 102 Adventurer 0 Explorer 0 Win Type - Total 0 Types 0/0/0/0/0/0/0/0/0 Lore% 52 Gallery% 53 Achievement% 43 Wizard Run 0 Options --------- ASCII 0 Keyboard 0 Movement Numpad Keybinds 0 Fullscreen 1 Font 18/X11Bold Map View 76x50 Tactical HUD 1 Map Filters NONE Filters NONE Steam 1 RUN: bc1f34b0-b8f8-4dc8-989c-70d4116ac394